bitfinex-derivatives/quotes_BTCF0:USTF0_20210108
["timestamp","ask_amount","ask_price","bid_price","bid_amount"]
[1610080736435,0.14432471,38549.0,38548.0,0.53205331]
[1610080738339,0.60699605,38549.0,38548.0,0.53205331]
[1610080738740,0.15216685,38549.0,38548.0,0.53205331]
[1610080738942,0.60701103,38549.0,38548.0,0.59557161]
[1610080739141,4.47241103,38549.0,38548.0,0.59557161]
[1610080739340,4.47241103,38549.0,38548.0,0.53205331]
[1610080739542,5.41821323,38549.0,38522.0,0.0952844]
[1610080739942,2.81472657,38549.0,38522.0,0.19087579]
[1610080740144,0.00329459,38534.0,38522.0,0.19087579]
[1610080740345,0.13881459,38534.0,38522.0,0.19087754]
[1610080740545,0.5374,38533.0,38510.0,0.03206402]
[1610080740746,0.54069472,38533.0,38523.0,0.03206456]
[1610080740946,0.13632608,38524.0,38523.0,0.03206456]
[1610080741144,0.23880608,38524.0,38511.0,0.03206507]
[1610080741345,0.23880608,38524.0,38523.0,0.0320656]
[1610080741544,0.23880608,38524.0,38508.0,0.13632608]
[1610080741545,0.23880608,38524.0,38512.0,0.03206572]
[1610080741745,0.23880608,38524.0,38523.0,0.0317692]
[1610080741947,0.23880608,38524.0,38523.0,0.03206629]
[1610080742145,0.23880608,38524.0,38513.0,0.03206858]
[1610080742345,3.809,38518.0,38489.0,0.15887938]
[1610080742546,3.809,38518.0,38514.0,0.03207704]
[1610080742946,0.13632608,38515.0,38495.0,0.13632608]
[1610080743149,0.27213608,38515.0,38495.0,0.13632608]
[1610080743348,0.27213608,38515.0,38496.0,0.03208048]
[1610080743749,0.28343866,38515.0,38496.0,0.03208048]
[1610080744149,0.27213608,38515.0,38496.0,0.03208048]
[1610080745049,0.13632608,38497.0,38496.0,0.03208048]
[1610080747954,0.55672608,38497.0,38496.0,0.03208048]
[1610080748153,0.55672608,38497.0,38491.0,0.11473]
[1610080748353,0.55672608,38497.0,38496.0,0.03208646]
[1610080748752,0.55672608,38497.0,38492.0,0.0320874]
[1610080748953,0.4204,38497.0,38496.0,0.03208756]
[1610080749151,0.4204,38497.0,38493.0,0.03208915]
[1610080749355,0.09041,38498.0,38493.0,0.03208915]
[1610080749553,0.09041,38498.0,38496.0,0.03208915]
[1610080749756,0.09041,38498.0,38494.0,0.03208992]
[1610080749955,0.09041,38498.0,38497.0,0.03209008]
[1610080750156,0.57131,38498.0,38497.0,0.03179277]
[1610080750356,0.57131,38498.0,38495.0,0.0320895]
[1610080750555,0.57131,38498.0,38497.0,0.03208945]
[1610080750757,0.57131,38498.0,38496.0,0.03208977]
[1610080750955,0.13632608,38497.0,38476.0,0.15896387]
[1610080751557,0.13632608,38497.0,38476.0,0.19105352]
[1610080752957,0.57131,38498.0,38484.0,0.13632608]
[1610080753157,0.09041,38498.0,38484.0,0.13632608]
[1610080753358,0.1054115,38507.0,38485.0,0.03208813]
[1610080753557,0.10212,38507.0,38485.0,4.20218813]
[1610080753756,0.0112781,38510.0,38485.0,4.20218813]
[1610080753957,0.13909911,38515.0,38486.0,0.19102504]
[1610080754157,0.13581,38515.0,38486.0,0.19102504]
[1610080754356,0.00328914,38517.0,38485.0,0.03208411]
[1610080754556,0.00328889,38515.0,38485.0,0.03208411]
[1610080754756,0.11490889,38515.0,38485.0,0.03208411]
[1610080754957,0.13632608,38486.0,38485.0,0.03208411]
[1610080755960,0.13632608,38486.0,38484.0,0.13306]
[1610080756359,0.13632608,38486.0,38485.0,0.03208807]
[1610080757358,0.13632608,38486.0,38477.0,0.03208945]
[1610080757559,0.13632608,38486.0,38485.0,0.03208973]
[1610080757758,0.13632608,38486.0,38478.0,0.03209139]
[1610080758158,0.13632608,38486.0,38477.0,0.03209122]
[1610080758358,0.13632608,38486.0,38479.0,0.0320913]
[1610080758559,0.13632608,38486.0,38478.0,0.03209136]
[1610080758960,0.13632608,38479.0,38477.0,0.03209197]
[1610080759159,0.13632608,38479.0,38476.0,0.13632608]
[1610080759359,0.13632608,38479.0,38478.0,0.0320913]
[1610080759759,0.13632608,38479.0,38477.0,0.03209163]
[1610080759959,0.13632608,38479.0,38475.0,0.10961]
[1610080759960,0.13632608,38479.0,38478.0,0.03209175]
[1610080760560,0.13632608,38479.0,38476.0,0.03209159]
[1610080760760,0.13632608,38479.0,38478.0,0.03209268]
[1610080760960,0.13632608,38479.0,38477.0,0.03209268]
[1610080761360,0.13632608,38479.0,38478.0,0.03209203]
[1610080761561,0.10014,38500.0,38478.0,0.03209203]
[1610080761761,0.00328253,38506.0,38478.0,0.00029598]
[1610080761963,0.00328253,38506.0,38479.0,0.03179268]
[1610080762164,0.00328232,38510.0,38479.0,0.03208862]
[1610080762363,0.00328232,38510.0,38483.0,4.2049]
[1610080762566,0.00328153,38513.0,38483.0,4.2049]
[1610080762765,0.00328153,38513.0,38484.0,0.03208498]
[1610080762966,0.11162,38515.0,38485.0,0.13632608]
[1610080763167,0.00328142,38516.0,38485.0,0.13632608]
[1610080763365,4.197,38511.0,38486.0,0.0320857]
[1610080763564,4.29681,38511.0,38486.0,0.0320857]
[1610080763966,4.29681,38511.0,38476.0,0.0320848]
[1610080764165,4.29681,38511.0,38475.0,0.10961]
[1610080764365,4.29681,38511.0,38477.0,0.0320854]
[1610080764567,4.30009092,38511.0,38477.0,0.0320854]
[1610080764766,4.30009092,38511.0,38476.0,0.03208559]
[1610080764966,0.00328102,38510.0,38478.0,0.03208615]
[1610080765165,0.00328102,38510.0,38477.0,0.03208694]
[1610080765366,0.00328127,38508.0,38477.0,0.03208694]
[1610080765565,0.00328127,38508.0,38479.0,0.03208907]
[1610080765765,0.01124947,38509.0,38478.0,0.03208883]
[1610080765965,0.01124947,38509.0,38480.0,0.03208917]
[1610080766166,0.00328061,38508.0,38479.0,0.03208929]
[1610080766565,0.00328061,38508.0,38476.0,0.03208888]
[1610080766766,0.00328011,38509.0,38480.0,0.03208799]
[1610080766966,0.00328011,38509.0,38477.0,0.03208786]
[1610080767166,0.00328011,38509.0,38481.0,0.13632608]
[1610080767367,0.00328013,38510.0,38481.0,0.13632608]
[1610080767567,0.00328013,38510.0,38482.0,0.03208801]
[1610080769067,0.00328013,38510.0,38487.0,0.13632608]
[1610080769268,0.10308916,38511.0,38487.0,0.13632608]
[1610080769467,0.10308916,38511.0,38488.0,0.032086]
[1610080769669,0.09981,38511.0,38488.0,0.032086]
[1610080769868,0.01124005,38519.0,38488.0,0.032086]
[1610080770469,0.00327826,38523.0,38488.0,0.032086]
[1610080770668,0.01123948,38523.0,38488.0,0.032086]
[1610080771069,0.00327826,38523.0,38502.0,0.13632608]
[1610080771472,0.10248,38524.0,38503.0,0.03207539]
[1610080771668,0.00327836,38525.0,38503.0,0.03207539]
[1610080771869,0.00327836,38524.0,38503.0,0.03207539]
[1610080772070,0.11496836,38524.0,38503.0,0.03207539]
[1610080772270,0.00327846,38522.0,38503.0,0.03207539]
[1610080772571,0.00327925,38520.0,38496.0,0.03207774]
[1610080772772,0.00327925,38520.0,38504.0,0.03207799]
[1610080772974,0.01124377,38520.0,38504.0,0.03207799]
[1610080773174,0.13632608,38505.0,38496.0,0.03208055]
[1610080773374,0.13632608,38505.0,38485.0,0.15894226]
[1610080773575,0.13632608,38505.0,38497.0,0.03208258]
[1610080773976,0.13632608,38505.0,38486.0,0.03208273]
[1610080774176,0.13632608,38505.0,38498.0,0.03208236]
[1610080774376,0.13632608,38505.0,38487.0,0.03208199]
[1610080774776,0.13632608,38505.0,38499.0,0.03208143]
[1610080774975,0.13632608,38505.0,38488.0,0.03208139]
[1610080775176,0.13632608,38500.0,38483.0,0.09714]
[1610080775378,0.13632608,38500.0,38489.0,0.03208192]
[1610080775778,0.13632608,38500.0,38479.0,0.19101354]
[1610080775976,0.13632608,38500.0,38490.0,0.0320861]
[1610080776177,0.13632608,38500.0,38480.0,0.03208574]
[1610080776578,0.13632608,38500.0,38491.0,0.03208618]
[1610080776776,0.13632608,38500.0,38481.0,0.03208772]
[1610080776976,0.13632608,38500.0,38476.0,0.2838]
[1610080776977,0.13632608,38500.0,38492.0,0.03208827]
[1610080777177,0.13632608,38493.0,38492.0,0.03208827]
[1610080777376,0.13632608,38493.0,38482.0,0.03208801]
[1610080777576,0.13632608,38493.0,38492.0,0.03208772]
[1610080777777,0.13632608,38493.0,38483.0,0.03208679]
[1610080778177,0.13632608,38493.0,38492.0,0.03208669]
[1610080778375,0.13632608,38493.0,38477.0,0.13632608]
[1610080778578,0.13632608,38493.0,38492.0,0.03208843]
[1610080778776,0.13632608,38493.0,38478.0,0.03208818]
[1610080779178,0.13632608,38479.0,38478.0,0.03208818]
[1610080780176,0.13632608,38479.0,38477.0,0.13632608]
[1610080780376,0.13632608,38479.0,38478.0,0.03208888]
[1610080780977,0.13632608,38479.0,38477.0,0.03209022]
[1610080781176,0.13632608,38479.0,38478.0,0.03209077]
[1610080781679,0.13632608,38479.0,38477.0,0.03209114]
[1610080782079,0.13632608,38479.0,38475.0,0.10961]
[1610080782080,0.13632608,38479.0,38476.0,0.03209203]
[1610080782279,0.13632608,38479.0,38478.0,0.0320924]
[1610080782478,0.13632608,38479.0,38477.0,0.03209237]
[1610080782880,0.13632608,38479.0,38478.0,0.03209329]
[1610080783281,0.13632608,38479.0,38476.0,0.03209488]
[1610080783681,0.13632608,38479.0,38478.0,0.03209434]
[1610080783881,0.13632608,38479.0,38477.0,0.03209431]
[1610080784081,0.13632608,38479.0,38478.0,0.0320949]
[1610080784681,0.13632608,38479.0,38476.0,0.03209518]
[1610080784881,0.13632608,38479.0,38476.0,0.03209515]
[1610080785082,0.13632608,38479.0,38475.0,0.10961]
[1610080785483,0.13632608,38479.0,38464.0,0.15879217]
[1610080785883,0.13632608,38479.0,38464.0,0.19088716]
[1610080787084,0.08983,38492.0,38470.0,0.13632608]
[1610080787284,0.08983,38492.0,38470.0,0.25259608]
[1610080787484,3.1025,38495.0,38471.0,0.0320952]
[1610080789184,0.13632608,38472.0,38471.0,0.0320952]
[1610080790186,3.63252608,38472.0,38465.0,0.03210335]
[1610080790383,3.63252608,38472.0,38471.0,0.03210534]
[1610080790585,3.63252608,38472.0,38466.0,0.03210621]
[1610080790984,3.63252608,38472.0,38456.0,0.03210749]
[1610080791186,0.13632608,38457.0,38455.0,0.10776]
[1610080791787,0.13632608,38457.0,38456.0,0.03210761]
[1610080792189,0.09026,38480.0,38456.0,0.03210761]
[1610080792986,0.11835,38489.0,38455.0,0.29867703]
[1610080793188,0.11835,38489.0,38476.0,0.13632608]
[1610080793590,0.11835,38489.0,38477.0,0.03209857]
[1610080794389,0.09432,38500.0,38477.0,0.03209857]
[1610080794588,0.01130776,38501.0,38477.0,0.03209857]
[1610080794791,0.00329671,38501.0,38477.0,0.03209857]
[1610080795188,0.13632608,38478.0,38477.0,0.03209857]
[1610080796189,0.13632608,38478.0,38477.0,0.00029518]
[1610080796990,0.13632608,38478.0,38471.0,0.03209653]
[1610080797190,0.13632608,38472.0,38471.0,0.03180132]
[1610080797790,0.13632608,38472.0,38471.0,0.03209653]
[1610080798191,3.94012608,38472.0,38471.0,0.03209653]
[1610080798592,3.94012608,38472.0,38456.0,0.0321031]
[1610080798790,3.94012608,38472.0,38471.0,0.03210639]
[1610080799190,3.94012608,38472.0,38457.0,0.03210893]
[1610080799390,3.94012608,38472.0,38471.0,0.0321104]
[1610080799592,0.13632608,38472.0,38458.0,0.03210839]
[1610080799993,0.13632608,38472.0,38471.0,0.03210821]
[1610080800192,0.13632608,38472.0,38459.0,0.03210781]
[1610080800392,0.13632608,38472.0,38471.0,0.03210733]
[1610080800593,0.13632608,38472.0,38460.0,0.03210679]
[1610080800993,0.13632608,38472.0,38461.0,0.03210701]
[1610080801193,0.34963869,38478.0,38460.0,0.13632608]
[1610080801794,0.34963869,38478.0,38461.0,0.03210505]
[1610080802194,0.34963869,38478.0,38462.0,0.00029527]
[1610080802495,0.34963869,38478.0,38461.0,0.03180977]
[1610080802695,0.34963869,38478.0,38463.0,0.00029528]
[1610080803095,0.13632608,38464.0,38461.0,0.03210507]
[1610080803296,0.13632608,38464.0,38461.0,0.03180977]
[1610080803495,0.13632608,38464.0,38462.0,0.0002953]
[1610080803896,0.13632608,38464.0,38456.0,0.0321082]
[1610080804097,0.13632608,38464.0,38463.0,0.00029532]
[1610080804296,0.13632608,38464.0,38457.0,0.03210914]
[1610080804697,0.13632608,38464.0,38463.0,0.03210984]
[1610080804899,0.13632608,38464.0,38458.0,0.03211172]
[1610080805099,0.13632608,38464.0,38463.0,0.03211413]
[1610080805298,3.25209,38471.0,38463.0,0.03211413]
[1610080805499,0.11119,38471.0,38459.0,0.03211437]
[1610080805701,3.2705,38460.0,38442.0,0.15884736]
[1610080805901,0.1336,38462.0,38460.0,0.03211708]
[1610080806101,0.1336,38462.0,38460.0,0.03182169]
[1610080806403,3.1743,38461.0,38436.0,0.1062]
[1610080807002,0.01134618,38460.0,38437.0,0.03212333]
[1610080807206,0.13632608,38438.0,38437.0,0.03212333]
[1610080807606,0.74822608,38438.0,38437.0,0.03212333]
[1610080807805,0.74822608,38438.0,38415.0,0.19106075]
[1610080808004,0.13632608,38438.0,38437.0,0.03183546]
[1610080808205,0.13632608,38438.0,38416.0,0.03213295]
[1610080808406,3.2913,38417.0,38416.0,0.03213295]
[1610080808606,3.2913,38417.0,38415.0,0.03213307]
[1610080808806,3.2913,38417.0,38416.0,0.03213425]
[1610080809205,3.42762608,38417.0,38416.0,0.03213425]
[1610080809409,3.42762608,38417.0,38415.0,0.0321351]
[1610080809606,3.42762608,38417.0,38416.0,0.03213589]
[1610080810207,3.42762608,38417.0,38415.0,0.03213719]
[1610080810406,3.42762608,38417.0,38416.0,0.03213796]
[1610080810605,0.13632608,38417.0,38410.0,0.13632608]
[1610080811006,0.13632608,38417.0,38416.0,0.03214218]
[1610080811205,0.13632608,38417.0,38414.0,0.13632608]
[1610080811606,0.13632608,38417.0,38415.0,0.00029561]
[1610080811805,0.13632608,38417.0,38415.0,0.03214068]
[1610080812710,0.13632608,38417.0,38405.0,0.03213966]
[1610080813108,0.13632608,38417.0,38404.0,0.118]
[1610080813109,0.13632608,38417.0,38416.0,0.03213946]
[1610080813309,0.13632608,38417.0,38416.0,0.13632608]
[1610080813509,0.13632608,38417.0,38416.0,0.16846348]
[1610080814511,0.10672,38441.0,38416.0,0.16846348]
[1610080814711,0.10437,38449.0,38416.0,0.16846348]
[1610080814912,0.00326823,38453.0,38417.0,0.032132]
[1610080815112,0.68492666,38460.0,38417.0,0.032132]
[1610080815113,0.01122562,38461.0,38426.0,2.9826]
[1610080815312,0.01122562,38461.0,38451.0,0.13632608]
[1610080815513,0.1336,38462.0,38451.0,0.13632608]
[1610080815712,0.00327419,38464.0,38451.0,0.13632608]
[1610080815913,0.02369888,38465.0,38451.0,0.13632608]
[1610080815914,0.0032774,38467.0,38452.0,0.0321223]
[1610080816312,0.01123677,38468.0,38452.0,0.0321223]
[1610080816715,0.00327884,38470.0,38452.0,0.0321223]
[1610080817119,0.01124232,38472.0,38452.0,0.0321223]
[1610080817414,0.13632608,38453.0,38452.0,0.0321223]
[1610080818817,0.13632608,38453.0,38446.0,0.03212089]
[1610080819020,0.13632608,38453.0,38452.0,0.03212238]
[1610080819419,0.13632608,38453.0,38447.0,0.03211896]
[1610080819618,0.13632608,38453.0,38452.0,0.03212073]
[1610080819819,0.13632608,38453.0,38448.0,0.03212408]
[1610080820019,0.13632608,38453.0,38452.0,0.00029222]
[1610080820220,0.13632608,38453.0,38452.0,0.03212155]
[1610080820422,0.13632608,38453.0,38438.0,0.11912]
[1610080820623,0.13092,38458.0,38452.0,0.03211922]
[1610080820822,0.13092,38458.0,38439.0,0.03211696]
[1610080821225,0.26724608,38458.0,38457.0,0.13632608]
[1610080821424,0.13092,38458.0,38457.0,0.13632608]
[1610080821626,0.10029861,38472.0,38457.0,0.13632608]
[1610080821627,0.08458,38472.0,38457.0,0.16843885]
[1610080822225,0.08458,38472.0,38458.0,0.03211133]
[1610080822825,0.00327309,38479.0,38458.0,0.03211133]
[1610080823225,0.00327309,38479.0,38466.0,0.13632608]
[1610080823426,0.00327232,38480.0,38466.0,0.13632608]
[1610080823826,0.01122644,38482.0,38467.0,0.03210881]
[1610080824027,0.01574819,38483.0,38467.0,0.03210881]
[1610080824028,0.00327381,38483.0,38467.0,0.03210881]
[1610080824427,0.00327562,38485.0,38467.0,0.03210881]
[1610080824830,0.0032781,38488.0,38467.0,0.03210881]
[1610080825230,0.13632608,38477.0,38476.0,0.13632608]
[1610080825634,0.13632608,38477.0,38476.0,0.03210139]
[1610080826233,0.13632608,38477.0,38466.0,0.03210183]
[1610080826430,0.13632608,38477.0,38476.0,0.03210208]
[1610080826630,0.13632608,38477.0,38467.0,0.0321024]
[1610080827031,0.13632608,38477.0,38476.0,0.03210292]
[1610080827231,0.13632608,38477.0,38468.0,0.03210352]
[1610080827430,0.13632608,38477.0,38476.0,0.0321035]
[1610080827631,0.13632608,38477.0,38469.0,0.03210298]
[1610080828031,0.13632608,38477.0,38465.0,0.03210434]
[1610080828233,0.13632608,38477.0,38470.0,0.03210389]
[1610080828432,0.13632608,38477.0,38466.0,0.03210387]
[1610080828832,0.13632608,38477.0,38471.0,0.03210491]
[1610080829033,0.13632608,38477.0,38467.0,0.03210433]
[1610080829233,0.13632608,38477.0,38472.0,0.16842997]
[1610080829634,0.13632608,38477.0,38472.0,0.13632608]
[1610080829834,0.13632608,38477.0,38473.0,0.03210178]
[1610080830434,0.10006,38486.0,38473.0,0.03210178]
[1610080831335,0.10006,38486.0,38485.0,0.13632608]
[1610080831535,0.00796309,38495.0,38485.0,0.13632608]
[1610080831737,0.09252,38496.0,38485.0,0.13632608]
[1610080831937,0.0237412,38498.0,38486.0,0.03209502]
[1610080832138,0.0079658,38498.0,38486.0,0.03209502]
[1610080832537,0.02371281,38497.0,38486.0,0.03209502]
[1610080832737,0.02371281,38497.0,38486.0,0.11842502]
[1610080832938,0.00796384,38501.0,38486.0,0.11842502]
[1610080833337,0.00796384,38501.0,38487.0,0.03209137]
[1610080833540,0.00796294,38500.0,38487.0,0.03209137]
[1610080833939,0.00795771,38499.0,38487.0,0.03209137]
[1610080834339,0.00795771,38499.0,38478.0,0.09505047]
[1610080834538,0.00795771,38499.0,38488.0,0.03209169]
[1610080834739,0.00795012,38498.0,38479.0,0.03209124]
[1610080835041,0.00795067,38499.0,38478.0,0.18791387]
[1610080835239,0.00795067,38499.0,38488.0,0.13632608]
[1610080835440,0.02372157,38501.0,38488.0,0.13632608]
[1610080835640,0.02372157,38501.0,38489.0,0.0320907]
[1610080835839,0.00796911,38503.0,38489.0,0.0320907]
[1610080836443,0.13409504,38504.0,38489.0,0.0320907]
[1610080836942,0.11831307,38504.0,38489.0,0.0320907]
[1610080837344,0.13632608,38490.0,38489.0,0.0320907]
[1610080837746,0.13632608,38490.0,38483.0,0.03209144]
[1610080837945,0.13632608,38490.0,38489.0,0.03209149]
[1610080838145,0.13632608,38490.0,38484.0,0.0320921]
[1610080838446,0.13632608,38490.0,38485.0,0.5]
[1610080838846,0.13632608,38490.0,38485.0,0.53209309]
[1610080839047,0.13632608,38490.0,38486.0,0.03209426]
[1610080840047,0.13632608,38490.0,38475.0,0.03209729]
[1610080840247,0.13632608,38490.0,38456.0,0.15584327]
[1610080840248,3.8711,38487.0,38456.0,0.15584327]
[1610080840649,3.8711,38487.0,38466.0,0.03209877]
[1610080840849,0.25685064,38490.0,38455.0,0.08766]
[1610080840850,0.02360775,38489.0,38457.0,0.0320992]
[1610080841048,0.02360775,38489.0,38467.0,0.0320993]
[1610080841251,0.02360775,38489.0,38486.0,0.5]
[1610080841648,0.02360775,38489.0,38487.0,0.03209996]
[1610080842049,0.00792102,38489.0,38487.0,0.03209996]
[1610080842249,0.0236075,38488.0,38487.0,0.03209996]
[1610080842648,0.00792094,38488.0,38487.0,0.03209996]
[1610080842949,0.12045926,38490.0,38487.0,0.03209996]
[1610080843349,0.13632608,38488.0,38487.0,0.53209996]
[1610080844149,0.13632608,38488.0,38487.0,0.03209996]
[1610080844550,0.13632608,38488.0,38481.0,0.03209495]
[1610080844750,0.13632608,38488.0,38487.0,0.03209476]
[1610080844950,0.13632608,38488.0,38487.0,0.53209476]
[1610080845149,0.13632608,38488.0,38487.0,0.5]
[1610080845551,0.13632608,38488.0,38487.0,0.0320948]
[1610080845751,0.00787737,38497.0,38487.0,0.0320948]
[1610080845949,0.3195,38544.0,38487.0,0.0320948]
[1610080845950,0.00787656,38500.0,38488.0,0.13632608]
[1610080846149,0.00787656,38500.0,38485.0,0.03209121]
[1610080846351,0.00787656,38500.0,38489.0,0.03208991]
[1610080846550,0.45945917,38504.0,38487.0,0.5]
[1610080846749,0.45945917,38504.0,38488.0,0.5]
[1610080846950,0.45157983,38504.0,38488.0,0.0320895]
[1610080847149,0.45157983,38504.0,38489.0,0.03208984]
[1610080847750,0.45157983,38504.0,38489.0,0.53208984]
[1610080847951,0.00786002,38503.0,38490.0,0.5]
[1610080848150,0.00786002,38503.0,38490.0,0.53209009]
[1610080848350,0.46714575,38504.0,38490.0,0.53209009]
[1610080848351,0.0078553,38501.0,38490.0,0.53209009]
[1610080848551,0.0078553,38501.0,38491.0,0.03209054]
[1610080848954,0.00785118,38499.0,38491.0,0.53209054]
[1610080849351,0.13632608,38492.0,38491.0,0.53209054]
[1610080849550,0.24166608,38492.0,38489.0,0.06295217]
[1610080849750,0.24166608,38492.0,38491.0,0.09504578]
[1610080850150,0.24166608,38492.0,38490.0,0.03209205]
[1610080850351,0.24166608,38492.0,38491.0,0.03209184]
[1610080850751,0.24166608,38492.0,38491.0,0.03179989]
[1610080850953,0.24166608,38492.0,38491.0,0.53179989]
[1610080851153,0.24166608,38492.0,38491.0,0.53209131]
[1610080851355,0.24166608,38492.0,38491.0,0.13661803]
[1610080851555,0.24166608,38492.0,38491.0,0.63661803]
[1610080851754,0.10534,38492.0,38491.0,0.63661803]
[1610080851954,0.10534,38492.0,38491.0,0.13661803]
[1610080852159,0.45157983,38504.0,38491.0,0.19956348]
[1610080852357,0.45157983,38504.0,38491.0,0.63661803]
[1610080852758,0.45157983,38504.0,38492.0,0.03208565]
[1610080852957,0.45157983,38504.0,38492.0,0.09502415]
[1610080853356,0.45157983,38504.0,38500.0,0.13632608]
[1610080853758,0.45157983,38504.0,38501.0,0.03208442]
[1610080854357,0.45157983,38504.0,38501.0,0.53208442]
[1610080854558,0.45157983,38504.0,38501.0,0.5]
[1610080854761,0.45157983,38504.0,38502.0,0.53208229]
[1610080855360,0.45157983,38504.0,38503.0,0.532083]
[1610080855760,0.45157983,38504.0,38503.0,0.032083]
[1610080855959,0.45157983,38504.0,38503.0,0.532083]
[1610080857361,0.45157983,38504.0,38503.0,0.59502298]
[1610080857560,0.45157983,38504.0,38503.0,0.532083]
[1610080864267,0.29037983,38504.0,38503.0,0.532083]
[1610080865268,0.1057,38534.0,38503.0,0.532083]
[1610080865467,0.1057,38534.0,38533.0,0.13632608]
[1610080865868,0.1057,38534.0,38533.0,0.16838561]
[1610080866071,0.1057,38534.0,38533.0,0.66838561]
[1610080866272,0.00790389,38546.0,38533.0,0.66838561]
[1610080866470,0.5580764,38550.0,38533.0,0.66838561]
[1610080866471,0.023561,38549.0,38533.0,0.66838561]
[1610080866671,0.00790534,38549.0,38534.0,0.03205729]
[1610080866870,0.02358447,38550.0,38534.0,0.53205729]
[1610080867074,0.00791728,38552.0,38534.0,0.53205729]
[1610080867471,0.00791728,38552.0,38535.0,0.0320537]
[1610080867472,4.32,38552.0,38535.0,0.0320537]
[1610080867872,4.32,38552.0,38535.0,0.5320537]
[1610080867873,0.00791235,38551.0,38535.0,0.5320537]
[1610080868072,0.10671235,38551.0,38535.0,0.5320537]
[1610080868273,0.10671235,38551.0,38536.0,0.03205404]
[1610080868274,0.00790945,38550.0,38536.0,0.03205404]
[1610080868673,0.00790945,38550.0,38536.0,0.53205404]
[1610080868975,0.12239535,38551.0,38537.0,0.53205476]
[1610080869375,0.13632608,38538.0,38537.0,0.53205476]
[1610080869578,0.13632608,38538.0,38534.0,0.5]
[1610080869777,0.13632608,38538.0,38537.0,0.53205446]
[1610080869976,0.0966,38542.0,38537.0,0.5]
[1610080870177,0.0966,38542.0,38535.0,0.53205463]
[1610080870377,0.0966,38542.0,38538.0,0.03205396]
[1610080870580,0.0988,38551.0,38537.0,0.5]
[1610080870777,0.0988,38551.0,38539.0,0.532052]
[1610080871178,0.0988,38551.0,38540.0,0.03205085]
[1610080871379,0.23512608,38551.0,38550.0,0.13632608]
[1610080871980,0.23512608,38551.0,38550.0,0.1683747]
[1610080872181,0.0988,38551.0,38550.0,0.1683747]
[1610080872381,0.00793973,38560.0,38550.0,0.6683747]
[1610080872780,0.00793769,38565.0,38550.0,0.6683747]
[1610080872980,0.00793769,38565.0,38551.0,0.09489834]
[1610080873180,0.00793751,38566.0,38551.0,0.09489834]
[1610080873380,0.00793751,38566.0,38564.0,0.13632608]
[1610080873580,0.5604632,38569.0,38564.0,0.13632608]
[1610080873581,0.0079345,38569.0,38564.0,0.13632608]
[1610080873881,0.00793401,38570.0,38565.0,0.03203998]
[1610080874281,0.02364553,38574.0,38565.0,0.53203998]
[1610080874480,0.02364553,38574.0,38565.0,0.5]
[1610080874682,0.46684356,38575.0,38564.0,0.13632608]
[1610080874683,0.00793046,38575.0,38566.0,0.5]
[1610080874880,0.00793046,38575.0,38566.0,0.50029144]
[1610080875081,0.00793046,38575.0,38567.0,0.00029144]
[1610080875483,0.13632608,38568.0,38567.0,0.50029144]
[1610080875683,0.24304608,38568.0,38566.0,0.00029147]
[1610080875883,0.24304608,38568.0,38567.0,0.00029147]
[1610080876283,0.24304608,38568.0,38567.0,0.5]
[1610080876682,0.24304608,38568.0,38567.0,0.00029147]
[1610080876882,0.24304608,38568.0,38567.0,0.5]
[1610080877484,0.24304608,38568.0,38567.0,0.50029148]
[1610080881488,0.24304608,38568.0,38567.0,0.63661756]
[1610080883291,0.10672,38568.0,38567.0,0.63661756]
[1610080883491,0.13632608,38580.0,38567.0,4.2043614]
[1610080883894,0.00790619,38587.0,38568.0,0.5320373]
[1610080884294,0.00790619,38587.0,38569.0,0.5]
[1610080884495,0.00790189,38589.0,38569.0,0.53203334]
[1610080884694,0.00790189,38589.0,38570.0,0.53203325]
[1610080884896,0.02355067,38590.0,38570.0,0.53203325]
[1610080885194,0.02355067,38590.0,38567.0,0.13632608]
[1610080885195,0.02355067,38590.0,38571.0,0.03203516]
[1610080885397,0.0078954,38587.0,38571.0,3.14693516]
[1610080885595,0.1383854,38587.0,38575.0,0.13632608]
[1610080885996,0.1383854,38587.0,38576.0,0.03203322]
[1610080886197,0.13049,38587.0,38576.0,0.03203322]
[1610080886397,0.13049,38587.0,38576.0,0.53203322]
[1610080886800,0.13049,38587.0,38577.0,0.53203284]
[1610080887197,0.13049,38587.0,38577.0,0.03203284]
[1610080887399,0.13049,38587.0,38578.0,0.53203201]
[1610080887797,0.13049,38587.0,38579.0,0.00029553]
[1610080888098,0.13049,38587.0,38578.0,0.0320315]
[1610080888297,0.13049,38587.0,38579.0,0.5]
[1610080888499,0.47752414,38587.0,38580.0,0.00029553]
[1610080888697,0.47752414,38587.0,38580.0,0.50029553]
[1610080888898,0.47752414,38587.0,38581.0,0.5]
[1610080889198,0.47752414,38587.0,38580.0,0.00029553]
[1610080889199,0.47752414,38587.0,38582.0,0.5]
[1610080889398,0.47752414,38587.0,38582.0,0.53203119]
[1610080889599,0.13632608,38583.0,38582.0,0.03173568]
[1610080889799,0.13632608,38583.0,38576.0,0.06347137]
[1610080890001,0.13632608,38583.0,38582.0,0.03203075]
[1610080890201,0.13632608,38583.0,38582.0,0.5]
[1610080890602,0.13632608,38583.0,38582.0,0.53203174]
[1610080891802,0.13632608,38583.0,38582.0,1.05383174]
[1610080892003,0.47752414,38587.0,38582.0,1.11730148]
[1610080892403,0.47752414,38587.0,38583.0,0.5]
[1610080892607,0.47752414,38587.0,38586.0,3.5726]
[1610080893204,0.47752414,38587.0,38586.0,4.16808529]
[1610080893606,0.13632608,38604.0,38586.0,4.30441137]
[1610080893807,0.13632608,38604.0,38586.0,0.73181137]
[1610080894006,0.00787459,38611.0,38597.0,3.7592]
[1610080894406,0.00787392,38613.0,38598.0,0.09546554]
[1610080894607,0.00787392,38613.0,38598.0,0.59546554]
[1610080894809,0.00786924,38618.0,38598.0,0.56374216]
[1610080895007,0.00786924,38618.0,38599.0,0.53201672]
[1610080895210,0.00786882,38623.0,38599.0,0.53201672]
[1610080895408,0.02343474,38627.0,38600.0,0.53172022]
[1610080895608,0.13632608,38622.0,38621.0,0.13632608]
[1610080895808,0.27199608,38622.0,38621.0,0.13632608]
[1610080896008,0.27199608,38622.0,38621.0,0.16833284]
[1610080896207,0.27199608,38622.0,38621.0,0.13662137]
[1610080896409,0.27199608,38622.0,38621.0,0.63503661]
[1610080897310,0.27199608,38622.0,38621.0,0.5320016]
[1610080898111,0.27199608,38622.0,38621.0,0.50029529]
[1610080899412,2.34471999,38622.0,38621.0,0.34152948]
[1610080899612,1.28746363,38622.0,38621.0,0.26229066]
[1610080899812,1.66780152,38622.0,38621.0,0.26229066]
[1610080900312,1.66780152,38622.0,38621.0,0.29400065]
[1610080900511,2.34367261,38622.0,38621.0,0.29400065]
[1610080901111,2.34367261,38622.0,38621.0,0.26229066]
[1610080901512,2.34367261,38622.0,38621.0,0.02454912]
[1610080903012,1.66780152,38622.0,38621.0,0.02454912]
[1610080903411,1.66780152,38622.0,38621.0,0.05626089]